fUST/lending_fUST_20250506
["ID","MTS","AMOUNT","RATE_DAILY","PERIOD"]
[359990269,1746466257831,-544.83,0.00033424,8]
[359990270,1746466257923,-400.0,0.00033424,8]
[359990271,1746466257932,-906.63,0.00033424,8]
[359990272,1746466257942,-400.0,0.00033424,8]
[359990273,1746466257951,-899.92,0.00033424,8]
[359990274,1746466257960,-400.0,0.00033424,8]
[359990275,1746466257970,-400.0,0.00033424,8]
[359990276,1746466257980,-400.0,0.00033424,8]
[359990277,1746466257989,-400.0,0.00033424,8]
[359990278,1746466257999,-1685.97,0.00033424,8]
[359990279,1746466258009,-400.0,0.00033424,8]
[359990280,1746466258018,-400.0,0.00033424,8]
[359990281,1746466258028,-400.0,0.00033424,8]
[359990282,1746466258037,-400.0,0.00033424,8]
[359990283,1746466258047,-400.0,0.00033424,8]
[359990284,1746466258057,-411.02,0.00033424,8]
[359990285,1746466258066,-409.25570381,0.00033424,8]
[359990286,1746466258075,-400.0,0.00033424,8]
[359990287,1746466258085,-2098.43,0.00033424,8]
[359990288,1746466258097,-544.02,0.00033424,8]
[359990289,1746466258107,-942.66,0.00033424,8]
[359990290,1746466258116,-400.0,0.00033424,8]
[359990291,1746466258126,-400.0,0.00033424,8]
[359990292,1746466258135,-218.67067451,0.00033424,8]
[359990293,1746466258145,-400.0,0.00033424,8]
[359990294,1746466258155,-428.552215,0.00033424,8]
[359990295,1746466258166,-1085.21,0.00033424,8]
[359990296,1746466258176,-400.0,0.00033424,8]
[359990297,1746466258186,-400.0,0.00033424,8]
[359990298,1746466258196,-400.0,0.00033424,8]
[359990299,1746466258206,-400.0,0.00033424,8]
[359990300,1746466258215,-400.0,0.00033424,8]
[359990301,1746466258225,-400.0,0.00033424,8]
[359990302,1746466258234,-413.54,0.00033424,8]
[359990303,1746466258243,-400.0,0.00033424,8]
[359990304,1746466258253,-400.0,0.00033424,8]
[359990305,1746466258263,-400.0,0.00033424,8]
[359990306,1746466258276,-151.0,0.00033424,14]
[359990307,1746466258286,-151.0,0.00033424,14]
[359990308,1746466258295,-441.99,0.00033424,8]
[359990309,1746466258305,-400.0,0.00033424,8]
[359990310,1746466258315,-400.0,0.00033424,8]
[359990311,1746466258324,-3512.58,0.00033424,2]
[359990312,1746466258334,-400.0,0.00033424,8]
[359990313,1746466258344,-400.0,0.00033424,8]
[359990314,1746466258354,-400.0,0.00033424,8]
[359990315,1746466258363,-545.82,0.00033424,8]
[359990316,1746466258373,-400.0,0.00033424,8]
[359990317,1746466258382,-400.0,0.00033424,8]
[359990318,1746466258391,-400.0,0.00033424,8]
[359990319,1746466258401,-400.0,0.00033424,8]
[359990320,1746466258410,-748.45,0.00033424,8]
[359990321,1746466258419,-1080.9,0.00033424,8]
[359990322,1746466258428,-617.8,0.00033424,8]
[359990323,1746466258439,-400.0,0.00033424,8]
[359990324,1746466258448,-423.48940489,0.00033424,8]
[359990325,1746466258457,-521.08,0.00033424,8]
[359990326,1746466258467,-400.0,0.00033424,8]
[359990327,1746466258476,-400.0,0.00033424,8]
[359990328,1746466258486,-400.0,0.00033424,8]
[359990329,1746466258495,-580.82,0.00033424,8]
[359990330,1746466258505,-1700.23,0.00033424,8]
[359990331,1746466258515,-300.0,0.00033424,8]
[359990332,1746466258524,-400.0,0.00033424,8]
[359990333,1746466258533,-478.9441987,0.00033424,8]
[359990334,1746466258543,-323.99367045,0.00033424,8]
[359990335,1746466258552,-400.0,0.00033424,8]
[359990336,1746466258561,-421.77,0.00033424,8]
[359990337,1746466258570,-580.0315384,0.00033424,8]
[359990338,1746466258579,-400.0,0.00033424,8]
[359990339,1746466258589,-400.0,0.00033424,8]
[359990340,1746466258598,-1322.26,0.00033424,8]
[359990341,1746466258608,-151.0,0.00033424,14]
[359990342,1746466258617,-151.0,0.00033424,14]
[359990343,1746466258627,-400.0,0.00033424,8]
[359990344,1746466258636,-400.0,0.00033424,8]
[359990345,1746466258645,-400.0,0.00033424,8]
[359990346,1746466258655,-2273.92,0.00033424,8]
[359990347,1746466258664,-400.0,0.00033424,8]
[359990348,1746466258673,-942.85,0.00033424,8]
[359990349,1746466258683,-302.913528,0.00033424,14]
[359990350,1746466258692,-302.913528,0.00033424,14]
[359990351,1746466258701,-1099.01,0.00033424,8]
[359990352,1746466258711,-2641.87,0.00033424,8]
[359990353,1746466258720,-400.0,0.00033424,8]
[359990354,1746466258730,-504.9,0.00033424,8]
[359990355,1746466258739,-302.913528,0.00033424,14]
[359990356,1746466258748,-302.913519,0.00033424,14]
[359990357,1746466258757,-2078.31,0.00033424,8]
[359990358,1746466258766,-400.0,0.00033424,8]
[359990359,1746466258776,-400.0,0.00033424,8]
[359990360,1746466258785,-1796.69,0.00033424,8]
[359990361,1746466258794,-404.27,0.00033424,8]
[359990362,1746466258803,-400.0,0.00033424,8]
[359990363,1746466258812,-400.0,0.00033424,8]
[359990364,1746466258822,-997.13,0.00033424,8]
[359990365,1746466258832,-400.0,0.00033424,8]
[359990366,1746466258842,-400.0,0.00033424,8]
[359990367,1746466258851,-2875.2,0.00033424,8]
[359990368,1746466258860,-236.15929592,0.00033424,8]
[359990369,1746466258872,-415.81729878,0.00033424,8]
[359990370,1746466258882,-933.37,0.00033424,8]
[359990371,1746466258891,-400.0,0.00033424,8]
[359990372,1746466258902,-400.0,0.00033424,8]
[359990373,1746466258913,-400.0,0.00033424,8]
[359990374,1746466258922,-400.0,0.00033424,8]
[359990375,1746466258931,-400.0,0.00033424,8]
[359990376,1746466258941,-400.0,0.00033424,8]
[359990377,1746466258950,-400.0,0.00033424,8]
[359990378,1746466258960,-2166.02,0.00033424,8]
[359990379,1746466258969,-400.0,0.00033424,8]
[359990380,1746466258979,-495.11,0.00033424,8]
[359990381,1746466258988,-478.21,0.00033424,8]
[359990382,1746466258997,-828.45,0.00033424,8]
[359990383,1746466259007,-400.0,0.00033424,8]
[359990384,1746466259016,-2370.89,0.00033424,8]
[359990385,1746466259025,-300.00876324,0.00033424,8]
[359990386,1746466259035,-833.54,0.00033424,8]
[359990387,1746466259044,-400.0,0.00033424,8]
[359990388,1746466259054,-400.0,0.00033424,8]
[359990389,1746466259063,-11132.27,0.00033424,8]
[359990390,1746466259072,-414.2,0.00033424,8]
[359990391,1746466259081,-1942.95,0.00033424,8]
[359990392,1746466259091,-400.0,0.00033424,8]
[359990393,1746466259100,-617.39,0.00033424,8]
[359990394,1746466259109,-400.0,0.00033424,8]
[359990395,1746466259118,-400.0,0.00033424,8]
[359990396,1746466259128,-534.63,0.00033424,8]
[359990397,1746466259138,-400.0,0.00033424,8]
[359990398,1746466259148,-400.0,0.00033424,8]
[359990399,1746466259158,-400.0,0.00033424,8]
[359990400,1746466259167,-400.0,0.00033424,8]
[359990401,1746466259177,-832.63,0.00033424,8]
[359990402,1746466259186,-400.0,0.00033424,8]
[359990403,1746466259196,-937.4,0.00033424,8]
[359990404,1746466259206,-400.0,0.00033424,8]
[359990405,1746466259215,-400.0,0.00033424,8]
[359990406,1746466259224,-6281.840601,0.00033424,2]
[359990407,1746466259233,-6281.840601,0.00033424,2]
[359990408,1746466259243,-1547.41,0.00033424,8]
[359990409,1746466259252,-9074.6,0.00033424,8]
[359990410,1746466259341,-1484.01,0.00033424,8]
[359990411,1746466259352,-371.96373117,0.00033424,8]
[359990412,1746466259361,-400.0,0.00033424,8]
[359990413,1746466259371,-6281.840601,0.00033424,2]
[359990414,1746466259380,-6281.84061099,0.00033424,2]
[359990415,1746466259389,-400.0,0.00033424,8]
[359990416,1746466259398,-2080.35,0.00033424,8]
[359990417,1746466259407,-2232.97,0.00033424,8]
[359990418,1746466259416,-1691.97,0.00033424,8]
[359990419,1746466259425,-400.0,0.00033424,8]
[359990420,1746466259435,-400.0,0.00033424,8]
[359990421,1746466259444,-400.0,0.00033424,8]
[359990422,1746466259454,-400.0,0.00033424,8]
[359990423,1746466259463,-400.0,0.00033424,8]
[359990424,1746466259472,-400.0,0.00033424,8]
[359990425,1746466259481,-3521.81,0.00033424,8]
[359990426,1746466259491,-708.96,0.00033424,8]
[359990427,1746466259500,-551.13,0.00033424,8]
[359990428,1746466259509,-400.0,0.00033424,8]
[359990429,1746466259519,-400.0,0.00033424,8]
[359990430,1746466259529,-553.1,0.00033424,8]
[359990431,1746466259538,-400.0,0.00033424,8]
[359990432,1746466259548,-586.27,0.00033424,8]
[359990433,1746466259557,-400.0,0.00033424,8]
[359990434,1746466259567,-400.0,0.00033424,8]
[359990435,1746466259575,-1186.53,0.00033424,8]
[359990436,1746466259585,-535.86,0.00033424,8]
[359990437,1746466259594,-400.0,0.00033424,8]
[359990438,1746466259605,-1986.73,0.00033424,8]
[359990439,1746466259615,-1000.0,0.00033424,8]
[359990440,1746466259624,-462.97,0.00033424,8]
[359990441,1746466259633,-406.42,0.00033424,8]
[359990442,1746466259643,-400.0,0.00033424,8]
[359990443,1746466259652,-400.0,0.00033424,8]
[359990444,1746466259662,-402.903244,0.00033424,14]
[359990445,1746466259671,-402.903244,0.00033424,14]
[359990446,1746466259682,-1488.07,0.00033424,8]
[359990447,1746466259692,-607.06,0.00033424,8]
[359990448,1746466259703,-402.903244,0.00033424,14]
[359990449,1746466259714,-402.903247,0.00033424,14]
[359990450,1746466259725,-4132.62,0.00033424,8]
[359990451,1746466259735,-1507.7,0.00033424,8]
[359990452,1746466259745,-1135.42,0.00033424,8]
[359990453,1746466259755,-681.33,0.00033424,8]
[359990454,1746466259765,-400.0,0.00033424,8]
[359990455,1746466259775,-274.50897236,0.00033424,14]
[359990456,1746466259784,-1080.08,0.00033424,8]
[359990457,1746466259794,-400.0,0.00033424,8]
[359990458,1746466259803,-735.3,0.00033424,8]
[359990459,1746466259814,-400.0,0.00033424,8]
[359990460,1746466259824,-681.17,0.00033424,8]
[359990461,1746466259834,-400.0,0.00033424,8]
[359990462,1746466259843,-4785.9,0.00033424,8]
[359990463,1746466259853,-400.0,0.00033424,8]
[359990464,1746466259862,-500.0,0.00033424,8]
[359990465,1746466259872,-400.0,0.00033424,8]
[359990466,1746466259882,-400.0,0.00033424,8]
[359990467,1746466259891,-578.15,0.00033424,8]
[359990468,1746466259911,-400.0,0.00033424,8]
[359990469,1746466259923,-25922.47,0.00033424,8]
[359990470,1746466259933,-400.0,0.00033424,8]
[359990471,1746466259943,-400.0,0.00033424,8]
[359990472,1746466259953,-400.0,0.00033424,8]
[359990473,1746466259963,-3661.81,0.00033424,8]
[359990474,1746466259973,-400.0,0.00033424,8]
[359990475,1746466259983,-400.0,0.00033424,8]
[359990476,1746466259993,-400.0,0.00033424,8]
[359990477,1746466260003,-2781.29,0.00033424,8]
[359990478,1746466260014,-1064.62,0.00033424,8]
[359990479,1746466260025,-400.0,0.00033424,8]
[359990480,1746466260035,-400.0,0.00033424,8]
[359990481,1746466260046,-400.0,0.00033424,8]
[359990482,1746466260057,-151.0,0.00033424,14]
[359990483,1746466260067,-611.37,0.00033424,8]
[359990484,1746466260077,-400.0,0.00033424,8]
[359990485,1746466260088,-206.857404,0.00033424,8]
[359990486,1746466260098,-400.0,0.00033424,8]
[359990487,1746466260108,-3135.4,0.00033424,8]
[359990488,1746466260118,-1911.03,0.00033424,8]
[359990489,1746466260129,-3885.96,0.00033424,8]
[359990490,1746466260139,-7691.86,0.00033424,8]
[359990491,1746466260150,-400.0,0.00033424,8]
[359990492,1746466260160,-400.0,0.00033424,8]
[359990493,1746466260172,-4527.66,0.00033424,8]
[359990494,1746466260182,-400.0,0.00033424,8]
[359990495,1746466260192,-7054.49,0.00033424,8]
[359990496,1746466260202,-400.0,0.00033424,8]
[359990497,1746466260213,-516.96,0.00033424,8]
[359990498,1746466260223,-604.47,0.00033424,8]
[359990499,1746466260234,-553.59,0.00033424,8]
[359990500,1746466260244,-400.0,0.00033424,8]
[359990501,1746466260254,-1553.26,0.00033424,8]
[359990502,1746466260265,-1471.97,0.00033424,8]
[359990503,1746466260279,-400.0,0.00033424,8]
[359990504,1746466260290,-400.0,0.00033424,8]
[359990505,1746466260300,-400.0,0.00033424,8]
[359990506,1746466260311,-400.0,0.00033424,8]
[359990507,1746466260322,-784.14,0.00033424,8]
[359990508,1746466260333,-2405.99,0.00033424,8]
[359990509,1746466260344,-566.19,0.00033424,8]
[359990510,1746466260355,-1800.71,0.00033424,8]
[359990511,1746466260366,-659.71,0.00033424,8]
[359990512,1746466260375,-400.0,0.00033424,8]
[359990513,1746466260386,-3076.91,0.00033424,8]
[359990514,1746466260396,-400.83267496,0.00033424,2]
[359990515,1746466260406,-755.88,0.00033424,8]
[359990516,1746466260417,-400.0,0.00033424,8]
[359990517,1746466260426,-712.21,0.00033424,8]
[359990518,1746466260437,-523.76694441,0.00033424,8]
[359990519,1746466260447,-400.0,0.00033424,2]
[359990520,1746466260458,-1249.89,0.00033424,8]
[359990521,1746466260468,-411.12,0.00033424,8]
[359990522,1746466260477,-2513.46,0.00033424,8]
[359990523,1746466260487,-400.0,0.00033424,2]
[359990524,1746466260497,-467.51131593,0.00033424,8]
[359990525,1746466260506,-400.0,0.00033424,8]
[359990526,1746466260517,-400.0,0.00033424,8]
[359990527,1746466260531,-1291.97,0.00033424,8]
[359990528,1746466260541,-160.48504546,0.00033424,8]
[359990529,1746466260552,-400.0,0.00033424,8]
[359990530,1746466260562,-400.0,0.00033424,8]
[359990531,1746466260572,-1500.0,0.00033425,2]
[359990532,1746466260582,-668.0,0.00033425,3]
[359990533,1746466260592,-668.0,0.00033453,3]
[359990534,1746466260602,-1001.29243734,0.00033477,15]
[359990535,1746466260612,-668.0,0.0003348,3]
[359990536,1746466260622,-5201.0,0.000335,2]
[359990537,1746466260632,-5201.0,0.000335,2]
[359990538,1746466260643,-5201.0,0.000335,2]
[359990539,1746466260776,-5201.0,0.000335,2]
[359990540,1746466260787,-5201.0,0.000335,2]
[359990541,1746466260797,-5201.0,0.000335,2]
[359990542,1746466260807,-5201.0,0.000335,2]
[359990543,1746466260817,-5201.0,0.000335,2]
[359990544,1746466260827,-5201.0,0.000335,2]
[359990545,1746466260836,-5201.0,0.000335,2]
[359990546,1746466260846,-168.0969,0.000335,14]
[359990547,1746466260855,-168.096892,0.000335,14]
[359990548,1746466260865,-183.373749,0.000335,2]
[359990549,1746466260875,-183.373741,0.000335,2]
[359990550,1746466260885,-668.0,0.00033508,3]
[359990551,1746466260895,-668.0,0.00033535,3]
[359990552,1746466260904,-668.0,0.00033562,3]
[359990553,1746466260914,-668.0,0.0003359,3]
[359990554,1746466260923,-668.0,0.00033617,3]
[359990555,1746466260933,-1295.80383713,0.00033624,29]
[359990556,1746466260944,-668.0,0.00033645,3]
[359990557,1746466260954,-668.0,0.00033672,3]
[359990558,1746466260964,-300.0,0.00033673,5]
[359990559,1746466260974,-400.0,0.00033698,8]
[359990560,1746466260984,-1692.68,0.00033698,8]
[359990561,1746466260994,-244.386599,0.00033698,14]
[359990562,1746466261004,-244.386599,0.00033698,14]
[359990563,1746466261014,-244.386599,0.00033698,14]
[359990564,1746466261024,-244.386599,0.00033698,14]
[359990565,1746466261033,-408.19,0.00033698,8]
[359990566,1746466261044,-400.0,0.00033698,8]
[359990567,1746466261054,-400.0,0.00033698,8]
[359990568,1746466261064,-621.86,0.00033698,8]
[359990569,1746466261074,-400.0,0.00033698,8]
[359990570,1746466261084,-400.0,0.00033698,8]
[359990571,1746466261093,-497.81,0.00033698,8]
[359990572,1746466261102,-400.0,0.00033698,8]
[359990573,1746466261112,-480.51,0.00033698,8]
[359990574,1746466261122,-441.76,0.00033698,8]
[359990575,1746466261132,-400.0,0.00033698,8]
[359990576,1746466261142,-334.56621458,0.00033698,8]
[359990577,1746466261152,-663.75,0.00033698,8]
[359990578,1746466261162,-468.83,0.00033698,8]
[359990579,1746466261173,-400.0,0.00033698,8]
[359990580,1746466261183,-400.0,0.00033698,8]
[359990581,1746466261192,-400.0,0.00033698,8]
[359990582,1746466261202,-650.06,0.00033698,8]
[359990583,1746466261212,-400.0,0.00033698,8]
[359990584,1746466261223,-400.0,0.00033698,8]
[359990585,1746466261232,-400.0,0.00033698,8]
[359990586,1746466261241,-400.0,0.00033698,8]
[359990587,1746466261251,-424.49,0.00033698,8]
[359990588,1746466261261,-400.0,0.00033698,8]
[359990589,1746466261273,-400.0,0.00033698,8]
[359990590,1746466261283,-400.0,0.00033698,8]
[359990591,1746466261293,-400.0,0.00033698,8]
[359990592,1746466261302,-584.19,0.00033698,8]
[359990593,1746466261312,-400.0,0.00033698,8]
[359990594,1746466261322,-544.01,0.00033698,8]
[359990595,1746466261332,-445.11,0.00033698,8]
[359990596,1746466261342,-207.76171077,0.00033698,8]
[359990597,1746466261352,-400.0,0.00033698,8]
[359990598,1746466261372,-315.99680839,0.00033698,8]
[359990599,1746466261390,-400.0,0.00033698,8]
[359990600,1746466261409,-400.0,0.00033698,8]
[359990601,1746466261429,-400.0,0.00033698,8]
[359990602,1746466261449,-596.14,0.00033698,8]
[359990603,1746466261466,-472.57967217,0.00033698,8]
[359990604,1746466261485,-407.26,0.00033698,8]
[359990605,1746466261499,-400.0,0.00033698,8]
[359990606,1746466261516,-400.0,0.00033698,8]
[359990607,1746466261536,-400.0,0.00033698,8]
[359990608,1746466261554,-400.0,0.00033698,8]
[359990609,1746466261567,-723.92,0.00033698,8]
[359990610,1746466261587,-400.0,0.00033698,8]
[359990611,1746466261601,-601.89,0.00033698,8]
[359990612,1746466261635,-400.0,0.00033698,8]
[359990613,1746466261655,-400.0,0.00033698,8]
[359990614,1746466261676,-516.84,0.00033698,8]
[359990615,1746466261697,-421.79091668,0.00033698,8]
[359990616,1746466261717,-744.57,0.00033698,8]
[359990617,1746466261735,-856.46,0.00033698,8]
[359990618,1746466261752,-763.86,0.00033698,8]
[359990619,1746466261768,-500.0,0.00033698,8]
[359990620,1746466261785,-400.0,0.00033698,8]
[359990621,1746466261799,-400.0,0.00033698,8]
[359990622,1746466261815,-508.21,0.00033698,8]
[359990623,1746466261831,-400.0,0.00033698,8]
[359990624,1746466261847,-502.77,0.00033698,8]
[359990625,1746466261862,-2573.19,0.00033698,8]
[359990626,1746466261877,-400.0,0.00033698,8]
[359990627,1746466261892,-412.76,0.00033698,8]
[359990628,1746466261908,-400.0,0.00033698,8]
[359990629,1746466261923,-1858.43,0.00033698,8]
[359990630,1746466261938,-663.7,0.00033698,8]
[359990631,1746466261955,-752.3,0.00033698,8]
[359990632,1746466261970,-400.0,0.00033698,8]
[359990633,1746466261986,-3742.18,0.00033698,8]
[359990634,1746466262002,-400.0,0.00033698,8]
[359990635,1746466262017,-742.46,0.00033698,8]
[359990636,1746466262032,-791.14,0.00033698,8]
[359990637,1746466262050,-500.0,0.00033698,8]
[359990638,1746466262065,-400.0,0.00033698,8]
[359990639,1746466262081,-400.0,0.00033698,8]
[359990640,1746466262096,-400.0,0.00033698,8]
[359990641,1746466262111,-400.0,0.00033698,8]
[359990642,1746466262127,-400.0,0.00033698,8]
[359990643,1746466262142,-400.0,0.00033698,8]
[359990644,1746466262158,-424.25,0.00033698,8]
[359990645,1746466262173,-400.0,0.00033698,8]
[359990646,1746466262188,-400.0,0.00033698,8]
[359990647,1746466262203,-400.0,0.00033698,8]
[359990648,1746466262218,-400.0,0.00033698,8]
[359990649,1746466262234,-400.0,0.00033698,8]
[359990650,1746466262250,-282.57376618,0.00033698,8]
[359990651,1746466262266,-424.41903197,0.00033698,8]
[359990652,1746466262281,-400.0,0.00033698,8]
[359990653,1746466262297,-971.48,0.00033698,8]
[359990654,1746466262312,-400.0,0.00033698,8]
[359990655,1746466262328,-400.0,0.00033698,8]
[359990656,1746466262352,-410.74,0.00033698,8]
[359990657,1746466262371,-400.0,0.00033698,8]
[359990658,1746466262514,-502.97,0.00033698,8]
[359990659,1746466262528,-1385.97,0.00033698,8]
[359990660,1746466262538,-828.56,0.00033698,8]
[359990661,1746466262548,-1013.68,0.00033698,8]
[359990662,1746466262558,-904.75,0.00033698,8]
[359990663,1746466262567,-400.0,0.00033698,8]
[359990664,1746466262576,-1542.95,0.00033698,8]
[359990665,1746466262587,-544.83,0.00033698,8]
[359990666,1746466262597,-400.0,0.00033698,8]
[359990667,1746466262606,-906.63,0.00033698,8]
[359990668,1746466262617,-400.0,0.00033698,8]
[359990669,1746466262627,-899.92,0.00033698,8]
[359990670,1746466262636,-400.0,0.00033698,8]
[359990671,1746466262646,-400.0,0.00033698,8]
[359990672,1746466262656,-400.0,0.00033698,8]
[359990673,1746466262665,-400.0,0.00033698,8]
[359990674,1746466262675,-1685.97,0.00033698,8]
[359990675,1746466262684,-400.0,0.00033698,8]
[359990676,1746466262694,-400.0,0.00033698,8]
[359990677,1746466262704,-417.269629,0.00033698,8]
[359990678,1746466262714,-400.0,0.00033698,8]
[359990679,1746466262724,-400.0,0.00033698,8]
[359990680,1746466262735,-411.02,0.00033698,8]
[359990681,1746466262745,-400.0,0.00033698,8]
[359990682,1746466262754,-2098.43,0.00033698,8]
[359990683,1746466262764,-544.02,0.00033698,8]
[359990684,1746466262773,-942.66,0.00033698,8]
[359990685,1746466262782,-400.0,0.00033698,8]
[359990686,1746466262792,-400.0,0.00033698,8]
[359990687,1746466262802,-400.0,0.00033698,8]
[359990688,1746466262811,-1085.21,0.00033698,8]
[359990689,1746466262822,-400.0,0.00033698,8]
[359990690,1746466262832,-400.0,0.00033698,8]
[359990691,1746466262841,-400.0,0.00033698,8]
[359990692,1746466262851,-400.0,0.00033698,8]
[359990693,1746466262860,-400.0,0.00033698,8]
[359990694,1746466262870,-400.0,0.00033698,8]
[359990695,1746466262881,-413.54,0.00033698,8]
[359990696,1746466262890,-400.0,0.00033698,8]
[359990697,1746466262900,-526.44817837,0.00033698,8]
[359990698,1746466262909,-400.0,0.00033698,8]
[359990699,1746466262920,-441.99,0.00033698,8]
[359990700,1746466262930,-400.0,0.00033698,8]
[359990701,1746466262940,-400.0,0.00033698,8]
[359990702,1746466262950,-3512.58,0.00033698,2]
[359990703,1746466262960,-521.5591642,0.00033698,8]
[359990704,1746466262970,-400.0,0.00033698,8]
[359990705,1746466262980,-402.99218453,0.00033698,8]
[359990706,1746466262990,-545.82,0.00033698,8]
[359990707,1746466263000,-400.0,0.00033698,8]
[359990708,1746466263009,-400.0,0.00033698,8]
[359990709,1746466263019,-400.0,0.00033698,8]
[359990710,1746466263029,-400.0,0.00033698,8]
[359990711,1746466263039,-748.45,0.00033698,8]
[359990712,1746466263049,-1080.9,0.00033698,8]
[359990713,1746466263059,-617.8,0.00033698,8]
[359990714,1746466263069,-400.0,0.00033698,8]
[359990715,1746466263078,-521.08,0.00033698,8]
[359990716,1746466263089,-400.0,0.00033698,8]
[359990717,1746466263099,-400.0,0.00033698,8]
[359990718,1746466263110,-400.0,0.00033698,8]
[359990719,1746466263119,-580.82,0.00033698,8]
[359990720,1746466263129,-1700.23,0.00033698,8]
[359990721,1746466263139,-400.0,0.00033698,8]
[359990722,1746466263148,-400.0,0.00033698,8]
[359990723,1746466263158,-421.77,0.00033698,8]
[359990724,1746466263169,-400.0,0.00033698,8]
[359990725,1746466263179,-400.0,0.00033698,8]
[359990726,1746466263189,-1322.26,0.00033698,8]
[359990727,1746466263199,-400.0,0.00033698,8]
[359990728,1746466263208,-400.0,0.00033698,8]
[359990729,1746466263218,-2273.92,0.00033698,8]
[359990730,1746466263227,-400.0,0.00033698,8]
[359990731,1746466263237,-942.85,0.00033698,8]
[359990732,1746466263247,-1099.01,0.00033698,8]
[359990733,1746466263258,-2641.87,0.00033698,8]
[359990734,1746466263269,-400.0,0.00033698,8]
[359990735,1746466263281,-504.9,0.00033698,8]
[359990736,1746466263291,-2078.31,0.00033698,8]
[359990737,1746466263302,-400.0,0.00033698,8]
[359990738,1746466263312,-407.22957232,0.00033698,8]
[359990739,1746466263324,-1796.69,0.00033698,8]
[359990740,1746466263335,-404.27,0.00033698,8]
[359990741,1746466263346,-400.0,0.00033698,8]
[359990742,1746466263356,-400.0,0.00033698,8]
[359990743,1746466263367,-997.13,0.00033698,8]
[359990744,1746466263377,-451.03497953,0.00033698,8]
[359990745,1746466263387,-206.11133371,0.00033698,8]
[359990746,1746466263396,-2875.2,0.00033698,8]
[359990747,1746466263416,-933.37,0.00033698,8]
[359990748,1746466263428,-400.0,0.00033698,8]
[359990749,1746466263438,-409.79425787,0.00033698,8]
[359990750,1746466263448,-400.0,0.00033698,8]
[359990751,1746466263458,-400.0,0.00033698,8]
[359990752,1746466263468,-400.0,0.00033698,8]
[359990753,1746466263479,-400.0,0.00033698,8]
[359990754,1746466263489,-179.31194484,0.00033698,8]
[359990755,1746466263499,-2166.02,0.00033698,8]
[359990756,1746466263509,-227.96173218,0.00033698,8]
[359990757,1746466263519,-495.11,0.00033698,8]
[359990758,1746466263529,-478.21,0.00033698,8]
[359990759,1746466263539,-828.45,0.00033698,8]
[359990760,1746466263549,-400.0,0.00033698,8]
[359990761,1746466263559,-2370.89,0.00033698,8]
[359990762,1746466263569,-833.54,0.00033698,8]
[359990763,1746466263580,-247.08818862,0.00033698,8]
[359990764,1746466263590,-400.0,0.00033698,8]
[359990765,1746466263600,-11132.27,0.00033698,8]
[359990766,1746466263611,-414.2,0.00033698,8]
[359990767,1746466263621,-1942.95,0.00033698,8]
[359990768,1746466263632,-400.0,0.00033698,8]